bitfinex/quotes_ETHUSD_20220309
["timestamp","ask_amount","ask_price","bid_price","bid_amount"]
[1646862812124,0.534,2709.1,2708.7,0.0990122]
[1646862813028,0.534,2709.1,2708.7,0.0698442]
[1646862813236,0.92372,2708.9,2708.4,0.69734261]
[1646862813428,0.534,2708.8,2708.5,0.08215532]
[1646862813629,0.484,2708.8,2708.5,0.08215532]
[1646862814029,0.484,2708.8,2708.5,0.08573169]
[1646862814839,0.484,2708.8,2708.5,0.08215532]
[1646862815042,0.484,2708.8,2708.5,0.08573169]
[1646862815297,0.484,2708.8,2708.5,0.00357637]
[1646862816087,0.484,2708.8,2708.4,0.06885954]
[1646862816285,0.484,2708.8,2708.5,0.00357637]
[1646862817292,0.484,2708.8,2708.4,0.06885954]
[1646862817497,0.484,2708.8,2708.6,0.029168]
[1646862817995,0.484,2708.8,2708.4,0.09802754]
[1646862818694,0.784,2708.8,2708.4,0.06885954]
[1646862819525,0.784,2708.8,2708.3,0.029168]
[1646862819725,0.92366,2708.6,2708.2,0.05677095]
[1646862819925,0.92366,2708.6,2708.2,0.20446295]
[1646862820127,0.3,2708.7,2708.2,0.05677095]
[1646862820327,0.3,2708.7,2708.3,0.08618585]
[1646862820527,0.3,2708.8,2708.3,0.75436046]
[1646862820727,0.3,2708.8,2708.4,0.08160278]
[1646862821133,0.3,2708.8,2708.4,0.08540301]
[1646862821531,0.3,2708.8,2708.7,0.91873207]
[1646862822331,0.3,2708.8,2708.7,0.99292016]
[1646862824682,0.3,2708.8,2708.7,0.07418809]
[1646862824881,0.3,2708.8,2708.6,0.00380012]
[1646862825680,0.3,2708.8,2708.4,0.07210825]
[1646862825882,1.22369,2708.8,2708.6,0.00111755]
[1646862826081,1.52369,2708.8,2708.6,0.00111755]
[1646862826531,0.534,2708.7,2708.6,0.00111755]
[1646862826733,0.534,2708.7,2708.4,0.07210825]
[1646862826932,0.534,2708.7,2708.0,0.66817461]
[1646862826933,0.92375,2708.6,2708.0,0.66817461]
[1646862827134,0.92375,2708.6,2708.1,0.08112192]
[1646862828131,0.92375,2708.6,2708.1,1.03879803]
[1646862828331,0.92375,2708.6,2708.2,0.09173725]
[1646862829338,1.51169344,2708.7,2708.2,0.09061956]
[1646862829538,0.92375,2708.6,2708.3,0.0035393]
[1646862830174,1.3,2708.7,2708.3,0.0035393]
[1646862830378,0.3,2708.8,2708.2,0.09061956]
[1646862830779,0.3,2708.8,2708.3,0.00353923]
[1646862831179,0.3,2708.8,2708.3,1.53714618]
[1646862831379,0.3,2708.8,2708.7,1.16339046]
[1646862831589,0.3,2708.8,2708.7,2.69699741]
[1646862839985,1.22355,2708.8,2708.7,2.69699741]
[1646862840385,1.22355,2708.8,2708.7,1.53360695]
[1646862840585,1.22355,2708.8,2708.6,0.00329742]
[1646862840986,1.22355,2708.8,2708.6,1.53690437]
[1646862841185,1.22355,2708.8,2708.7,1.53360695]
[1646862841627,1.22355,2708.8,2708.6,1.53690443]
[1646862841826,1.22355,2708.8,2708.7,1.53360695]
[1646862842028,1.22355,2708.8,2708.6,1.53690443]
[1646862842426,1.22355,2708.8,2708.6,1.53360695]
[1646862842726,1.22355,2708.8,2708.6,1.53690443]
[1646862843129,1.22355,2708.8,2708.7,1.53360695]
[1646862843531,1.22355,2708.8,2708.6,0.00329748]
[1646862843729,1.22355,2708.8,2708.3,1.53360695]
[1646862843730,0.3,2708.8,2708.3,1.53360695]
[1646862843929,0.3,2708.8,2708.6,0.00329829]
[1646862844538,0.3,2708.8,2708.6,1.04469829]
[1646862844735,0.92487287,2709.4,2708.7,1.53360695]
[1646862844932,0.9234,2709.4,2708.7,1.53360695]
[1646862845377,1.84679,2709.4,2708.7,1.53360695]
[1646862846178,2.14679,2709.4,2708.7,1.53360695]
[1646862846379,2.14679,2709.4,2708.9,0.00329792]
[1646862846579,1.84695,2709.3,2708.9,0.00329792]
[1646862846878,2.14695,2709.3,2708.9,0.00329792]
[1646862847278,2.14695,2709.3,2708.8,0.07690508]
[1646862847480,2.14695,2709.3,2709.0,0.00329772]
[1646862848081,2.176118,2709.3,2709.0,1.53690467]
[1646862848279,2.176118,2709.3,2709.1,1.53360695]
[1646862848480,2.176118,2709.3,2709.2,1.53360695]
[1646862848680,2.176118,2709.3,2709.0,0.00329766]
[1646862849330,3.0995474,2709.3,2709.0,0.00329766]
[1646862849531,0.92344,2709.2,2709.0,0.00329766]
[1646862849735,0.92344,2709.2,2708.7,1.10792507]
[1646862849736,4.0995474,2709.3,2709.2,0.71220832]
[1646862852134,3.176118,2709.3,2709.2,0.71220832]
[1646862852339,0.92344,2709.5,2709.2,0.71220832]
[1646862852532,0.92344,2709.5,2709.4,1.11939589]
[1646862853584,0.92344,2709.5,2709.3,0.07885928]
[1646862853987,1.22344,2709.5,2709.3,0.07885928]
[1646862854189,0.92344,2709.5,2709.3,0.07885928]
[1646862854388,1.22344,2709.5,2709.3,0.07885928]
[1646862854588,1.22344,2709.5,2709.3,0.07556196]
[1646862854789,1.22344,2709.5,2709.3,0.07903101]
[1646862855488,1.22344,2709.5,2709.3,0.00346905]
[1646862855793,1.22344,2709.5,2709.2,0.71220832]
[1646862855990,1.22344,2709.5,2709.3,0.00346905]
[1646862856290,1.22344,2709.5,2709.2,0.66567737]
[1646862856937,1.22344,2709.5,2709.3,3.57569605]
[1646862857134,0.3,2709.5,2709.4,0.07955432]
[1646862857333,1.22311,2709.8,2709.4,0.07955432]
[1646862857734,0.92311,2709.8,2709.4,0.07955432]
[1646862858131,0.92311,2709.8,2709.6,1.17314825]
[1646862858334,0.92311,2709.8,2709.6,2.21764825]
[1646862860875,0.92311,2709.8,2709.6,1.0445]
[1646862861776,0.92311,2709.8,2709.4,0.07955432]
[1646862862375,0.329168,2709.7,2709.4,0.07955432]
[1646862864030,0.029168,2709.5,2709.2,1.64439022]
[1646862864233,0.952368,2709.5,2709.2,1.64439022]
[1646862864529,1.252368,2709.5,2709.2,1.64768266]
[1646862864729,1.552368,2709.5,2709.2,1.64768266]
[1646862865330,1.552368,2709.5,2709.2,1.64439022]
[1646862865531,1.552368,2709.5,2709.2,1.6476798]
[1646862865734,1.552368,2709.5,2709.2,0.66896695]
[1646862866334,0.6,2709.5,2709.2,0.66896695]
[1646862866533,0.3,2709.5,2709.3,0.0901153]
[1646862866733,11.0,2710.0,2709.3,0.0901153]
[1646862867132,11.329168,2710.0,2709.3,0.0901153]
[1646862867332,11.329168,2710.0,2709.5,1.19020377]
[1646862867782,11.3,2710.0,2709.5,1.19020377]
[1646862867979,12.22303,2710.0,2709.5,1.19020377]
[1646862868681,12.22303,2710.0,2709.6,1.53315453]
[1646862872536,12.22303,2710.0,2709.6,5.03315453]
[1646862872737,10.58761595,2710.0,2709.7,1.61994118]
[1646862872939,10.58761595,2710.0,2709.9,0.07526364]
[1646862873141,10.58761595,2710.0,2709.9,1.60841817]
[1646862874341,10.88761595,2710.0,2709.9,1.60841817]
[1646862875783,9.88761595,2710.0,2709.9,1.60841817]
[1646862878187,9.88761595,2710.0,2709.9,1.53315453]
[1646862878586,9.88761595,2710.0,2709.7,1.53315453]
[1646862878786,9.88761595,2710.0,2709.8,1.60641219]
[1646862879032,9.88761595,2710.0,2709.9,1.53315453]
[1646862882540,9.58761595,2710.0,2709.9,2.34415453]
[1646862882796,9.58761595,2710.0,2709.9,2.42742327]
[1646862883198,9.58761595,2710.0,2709.9,2.99559788]
[1646862885104,9.58761595,2710.0,2709.9,3.36769788]
[1646862885299,9.58761595,2710.0,2709.9,14.71769788]
[1646862885501,9.58761595,2710.0,2709.9,3.36769788]
[1646862885702,9.58761595,2710.0,2709.9,2.99559788]
[1646862886107,9.58761595,2710.0,2709.9,2.32742327]
[1646862886300,9.58761595,2710.0,2709.9,5.82742327]
[1646862886530,9.58761595,2710.0,2709.9,2.32742327]
[1646862886730,9.58761595,2710.0,2709.9,5.82742327]
[1646862887334,9.58761595,2710.0,2709.9,2.32742327]
[1646862888337,9.58761595,2710.0,2709.9,5.82742327]
[1646862888539,9.58761595,2710.0,2709.9,2.32742327]
[1646862889942,9.58761595,2710.0,2709.9,1.62873537]
[1646862891190,9.61678395,2710.0,2709.9,1.62873537]
[1646862891385,9.58761595,2710.0,2709.9,1.62873537]
[1646862891785,9.58761595,2710.0,2709.9,1.77633637]
[1646862892086,9.58761595,2710.0,2709.9,1.62873537]
[1646862892686,7.95232357,2710.0,2709.9,1.62873537]
[1646862893286,7.98149157,2710.0,2709.9,1.62873537]
[1646862895738,7.95232357,2710.0,2709.9,1.77633637]
[1646862896135,7.95232357,2710.0,2709.9,1.62873537]
[1646862901191,7.95232357,2710.0,2709.9,1.04910657]
[1646862901192,8.25232357,2710.0,2709.9,1.04910657]
[1646862901451,9.30103219,2710.0,2709.9,0.09585476]
[1646862901645,0.04698099,2709.8,2709.3,0.28025476]
[1646862901940,0.04698099,2709.8,2709.3,0.09585476]
[1646862901941,0.07614899,2709.8,2709.3,0.09585476]
[1646862902140,0.029168,2709.7,2709.3,0.09585476]
[1646862902341,0.07614899,2709.8,2709.5,0.09585476]
[1646862902540,0.029168,2709.6,2709.5,0.09585476]
[1646862903543,0.04698099,2709.8,2709.5,0.09585476]
[1646862903741,0.029168,2709.7,2709.5,0.09585476]
[1646862904343,0.029168,2709.7,2709.3,0.09585476]
[1646862904642,0.34698099,2709.8,2709.3,0.09585476]
[1646862907181,0.029168,2709.4,2709.3,0.09585476]
[1646862907987,0.6,2709.5,2709.3,0.09585476]
[1646862908186,0.3,2709.5,2709.3,0.09585476]
[1646862908385,0.0759739,2709.6,2709.3,0.09585476]
[1646862908587,0.3,2709.7,2709.3,0.09585476]
[1646862908789,0.3,2709.6,2709.3,0.09585476]
[1646862909036,0.029168,2709.8,2709.3,0.09585476]
[1646862909240,0.05395724,2709.7,2709.3,0.09585476]
[1646862909434,0.08312524,2709.7,2709.3,0.09585476]
[1646862910234,0.05395724,2709.7,2709.3,0.09585476]
[1646862910635,0.08312524,2709.7,2709.3,0.09585476]
[1646862911235,0.3,2709.8,2709.3,0.24348476]
[1646862911441,0.329168,2709.8,2709.3,0.09585476]
[1646862911640,0.3,2709.8,2709.3,0.09585476]
[1646862912541,0.329168,2709.8,2709.3,0.09585476]
[1646862912779,1.22306,2709.9,2709.8,0.75419076]
[1646862917328,4.56903819,2709.9,2709.8,0.75419076]
[1646862917527,1.22306,2709.9,2709.8,0.75419076]
[1646862917730,2.22306,2709.9,2709.8,0.75419076]
[1646862917929,1.22306,2709.9,2709.8,0.75419076]
[1646862922287,1.22306,2709.9,2709.8,2.28754973]
[1646862922482,0.3,2709.9,2709.8,2.28754973]
[1646862922882,8.95232357,2710.0,2709.8,2.28754973]
[1646862923081,8.95232357,2710.0,2709.8,0.75419076]
[1646862925135,12.49775866,2710.0,2709.8,0.75419076]
[1646862925335,13.42095866,2710.0,2709.8,0.75419076]
[1646862925535,9.92095866,2710.0,2709.8,0.75419076]
[1646862929085,0.05092766,2709.9,2709.8,0.75419076]
[1646862931631,3.55092766,2709.9,2709.8,0.75419076]
[1646862931833,4.55092766,2709.9,2709.8,0.75419076]
[1646862932034,5.08492766,2709.9,2709.8,0.75419076]
[1646862932237,3.0,2709.8,2709.2,0.66899175]
[1646862932434,0.04850041,2709.6,2709.3,1.53361183]
[1646862932634,0.04850041,2709.6,2709.2,0.66567737]
[1646862932635,0.0524806,2709.4,2709.2,0.66567737]
[1646862932837,0.534,2709.3,2709.2,0.66899175]
[1646862933036,0.534,2709.3,2708.4,0.213568]
[1646862933236,1.84708,2709.2,2708.4,0.213568]
[1646862933433,0.534,2709.1,2708.4,0.213568]
[1646862933635,1.84708,2709.2,2709.1,1.068]
[1646862933836,2.38108,2709.2,2708.4,0.213568]
[1646862934236,4.2282601,2709.2,2708.4,0.213568]
[1646862934436,2.77078,2709.1,2708.4,0.213568]
[1646862934636,3.30478,2709.1,2708.4,0.213568]
[1646862934842,4.30478,2709.1,2708.4,0.213568]
[1646862935189,1.84723,2708.9,2708.4,0.213568]
[1646862935396,1.8473708,2708.8,2708.0,0.66817461]
[1646862935600,1.8473708,2708.8,2708.0,1.84254221]
[1646862935601,2.38148,2708.7,2708.0,1.84254221]
[1646862935798,2.68148,2708.7,2708.0,0.66817461]
[1646862935995,0.05413781,2708.5,2707.8,0.66817461]
[1646862936196,1.45791,2708.4,2707.8,0.66817461]
[1646862936396,0.9239,2708.3,2707.8,0.56817461]
[1646862936599,1.4579045,2708.2,2707.8,0.56817461]
[1646862937598,1.4579045,2708.2,2707.9,0.00357572]
[1646862937901,0.92389,2708.1,2707.9,0.00357572]
[1646862938197,1.45789,2708.0,2707.9,0.00357572]
[1646862938597,1.45789,2708.0,2707.8,0.147716]
[1646862938799,1.45789,2708.0,2707.9,0.00357572]
[1646862939648,0.92389,2708.0,2707.9,0.00357572]
[1646862939850,0.92389,2708.0,2707.6,0.006782]
[1646862940047,1.84776,2708.0,2707.8,0.00357574]
[1646862940847,1.84776,2708.0,2707.6,0.006782]
[1646862941046,0.92387,2708.0,2707.6,0.006782]
[1646862941246,0.92387,2708.0,2707.8,0.00357577]
[1646862942048,0.92387,2708.0,2707.6,0.006782]
[1646862942249,0.92387,2708.0,2707.7,0.14772]
[1646862942450,0.92387,2708.0,2707.9,0.029168]
[1646862942695,0.3,2708.1,2707.9,0.029168]
[1646862942897,0.92354,2708.2,2707.9,0.029168]
[1646862943395,0.92354,2708.2,2707.5,0.07846544]
[1646862943396,0.96748488,2708.2,2707.4,2.17642674]
[1646862943605,1.89122488,2708.2,2707.9,0.00348273]
[1646862944603,1.89122488,2708.2,2707.6,0.029168]
[1646862944802,1.89122488,2708.2,2707.9,0.00348273]
[1646862945200,1.84774,2708.1,2707.9,0.00348273]
[1646862945802,1.84774,2708.1,2707.6,0.029168]
[1646862946003,1.84774,2708.1,2707.9,0.00327653]
[1646862946445,3.6954703,2708.1,2707.9,0.00327653]
[1646862946635,3.9954703,2708.1,2707.9,0.00327653]
[1646862946835,4.9954703,2708.1,2707.9,0.00327653]
[1646862947036,1.84769,2708.0,2707.6,0.029168]
[1646862947237,1.84769,2708.0,2707.9,0.00327653]
[1646862947238,2.77155,2708.0,2707.9,0.00327653]
[1646862947437,1.84769,2708.0,2707.9,0.00327653]
[1646862947641,2.84769,2708.0,2707.9,0.00327653]
[1646862947842,1.84769,2708.0,2707.9,0.00327653]
[1646862948044,1.0,2708.0,2707.6,0.029168]
[1646862948247,5.91928,2708.1,2707.6,0.029168]
[1646862948444,5.91928,2708.1,2707.8,0.0032766]
[1646862949143,0.92377,2708.0,2707.8,0.0032766]
[1646862949344,0.92377,2708.0,2707.6,0.029168]
[1646862949542,0.92377,2708.0,2707.8,0.00330783]
[1646862949543,1.22377,2708.0,2707.8,0.00330783]
[1646862949941,0.92377,2708.0,2707.8,0.00330783]
[1646862950196,1.0,2708.1,2707.8,0.00330783]
[1646862950495,1.0,2708.1,2707.6,0.029168]
[1646862950698,0.96771488,2708.2,2707.6,0.029168]
[1646862950902,0.96771488,2708.2,2707.8,0.00330789]
[1646862951601,0.92387,2708.1,2707.8,0.00330789]
[1646862951803,0.92387,2708.1,2707.6,0.029168]
[1646862952101,0.92387,2708.1,2707.9,0.00330776]
[1646862952906,0.92387,2708.1,2707.8,1.5344417]
[1646862953103,0.92387,2708.1,2707.9,1.5344417]
[1646862953104,1.84783,2708.0,2707.9,1.5344417]
[1646862953302,1.84783,2708.0,2707.9,1.53774446]
[1646862953303,2.14783,2708.0,2707.9,1.53774446]
[1646862953505,2.14783,2708.0,2707.9,0.00330276]
[1646862953705,0.51096331,2708.0,2707.9,0.00330276]
[1646862953963,0.3,2708.0,2707.9,0.00330276]
[1646862954254,1.3,2708.3,2707.9,1.5636097]
[1646862954452,1.3,2708.3,2708.0,1.5344417]
[1646862954653,0.92365,2708.4,2708.0,1.5344417]
[1646862954654,1.22365,2708.4,2708.0,1.5344417]
[1646862954854,0.92365,2708.4,2708.0,1.5344417]
[1646862955753,0.92365,2708.4,2708.1,0.00330252]
[1646862956452,0.92365,2708.4,2708.0,1.5344417]
[1646862956954,0.92365,2708.4,2708.1,0.00330327]
[1646862957691,0.92365,2708.4,2708.0,1.5344417]
[1646862957894,0.92365,2708.4,2708.1,0.00330327]
[1646862958192,0.92365,2708.4,2708.1,0.03247127]
[1646862958600,0.96753092,2708.8,2708.1,0.03247127]
[1646862958601,7.01284222,2709.4,2708.3,0.10610004]
[1646862958796,5.16585222,2709.4,2708.7,0.029168]
[1646862959001,6.4468,2709.7,2709.3,1.11298145]
[1646862959203,10.19305225,2710.0,2709.5,0.029168]
[1646862959499,8.56145225,2710.0,2709.7,0.4694]
[1646862959799,8.51529417,2710.0,2709.7,0.4694]
[1646862960202,8.51529417,2710.0,2709.7,0.498568]
[1646862960404,8.51529417,2710.0,2709.9,0.029168]
[1646862960599,8.51529417,2710.0,2709.9,0.857768]
[1646862960600,7.95232357,2710.0,2709.9,0.857768]
[1646862961200,7.95232357,2710.0,2709.9,0.8286]
[1646862961640,8.25232357,2710.0,2709.9,0.8286]
[1646862961840,9.25232357,2710.0,2709.9,0.8286]
[1646862962239,7.95232357,2710.0,2709.9,0.8286]
[1646862962441,7.95232357,2710.0,2709.9,0.6286]
[1646862963641,9.25232357,2710.0,2709.9,0.6286]
[1646862963847,9.25232357,2710.0,2709.5,0.10676228]
[1646862964042,10.17547357,2710.0,2709.5,0.10676228]
[1646862964343,10.47547357,2710.0,2709.5,0.07759428]
[1646862965485,10.47547357,2710.0,2709.5,0.10676228]
[1646862967287,10.17547357,2710.0,2709.5,0.10676228]
[1646862967489,7.95232357,2710.0,2709.9,0.029168]
[1646862967689,7.95232357,2710.0,2709.9,1.07354856]
[1646862967891,0.0134671,2710.3,2710.0,5.60590714]
[1646862968093,0.0134671,2710.3,2710.2,0.029168]
[1646862968289,0.0134671,2710.3,2710.2,3.61304506]
[1646862968488,0.0134671,2710.3,2710.2,4.53699913]
[1646862968688,0.00847287,2711.4,2710.3,0.06895974]
[1646862968946,0.01346637,2710.8,2710.3,0.06895974]
[1646862969144,0.01346637,2710.8,2710.7,0.029168]
[1646862969744,0.3,2711.1,2710.7,0.029168]
[1646862969941,0.00336675,2711.0,2710.8,1.22709754]
[1646862970341,0.92616675,2711.0,2710.8,1.22709754]
[1646862970543,0.92286,2710.9,2710.7,0.029168]
[1646862970941,0.92286,2710.9,2710.6,0.029168]
[1646862971744,0.92286,2710.9,2710.6,1.18195698]
[1646862972340,0.92286,2710.9,2710.6,1.15278898]
[1646862973890,0.92286,2710.9,2710.6,1.18195698]
[1646862974307,0.06469346,2711.3,2710.7,3.529168]
[1646862974496,0.06469346,2711.3,2711.2,0.029168]
[1646862974497,0.01346557,2711.3,2711.2,0.029168]
[1646862974699,0.007,2711.4,2711.2,0.029168]
[1646862974894,0.92246,2712.0,2711.4,0.14128161]
[1646862975093,0.9224,2712.3,2711.8,0.029168]
[1646862975294,0.05353415,2712.4,2711.9,1.07824213]
[1646862975499,0.9363,2712.6,2711.9,1.07824213]
[1646862975695,0.014,2712.6,2711.9,1.15155678]
[1646862975894,0.014,2712.6,2712.4,0.029168]
[1646862976297,0.014,2712.6,2712.5,1.11562368]
[1646862976570,0.014,2712.6,2712.5,1.14479168]
[1646862976962,0.014,2712.6,2712.5,0.029168]
[1646862977556,0.014,2712.6,2711.7,0.08506218]
[1646862977954,0.014,2712.6,2711.6,0.00282405]
[1646862977955,0.014,2712.6,2712.0,0.029168]
[1646862978155,0.014,2712.6,2712.1,0.029168]
[1646862978356,0.05851412,2712.6,2712.2,0.029168]
[1646862978557,0.00380191,2712.3,2711.6,0.00282405]
[1646862978759,0.05074757,2712.2,2711.4,0.0835647]
[1646862979164,1.14457165,2711.5,2711.4,0.0543967]
[1646862979674,5.5,2711.4,2710.6,0.029168]
[1646862979863,5.5,2711.4,2709.8,1.1417]
[1646862979864,0.04901252,2711.2,2710.1,0.029168]
[1646862980066,0.04901252,2711.2,2710.0,0.029168]
[1646862980295,1.20261808,2710.2,2709.7,0.00380527]
[1646862980695,3.0697005,2710.1,2709.3,0.029168]
[1646862980896,1.84666,2709.9,2709.3,0.029168]
[1646862981092,2.14666,2709.9,2709.7,0.00380412]
[1646862981294,4.334,2709.8,2709.7,0.00380412]
[1646862981691,5.334,2709.8,2709.7,0.00380412]
[1646862981893,6.25734,2709.8,2709.0,0.029168]
[1646862982092,0.92344,2709.4,2709.0,0.029168]
[1646862982295,1.84688,2709.4,2709.0,0.029168]
[1646862982490,2.14688,2709.4,2709.0,0.029168]
[1646862982692,0.3,2709.3,2709.0,0.029168]
[1646862982891,0.3,2709.3,2708.9,0.029168]
[1646862983093,1.23189348,2708.9,2708.8,0.029168]
[1646862983694,1.23189348,2708.9,2708.3,0.09010621]
[1646862983946,1.53189348,2708.9,2708.4,1.53417698]
[1646862984146,3.35,2708.8,2708.3,0.029168]
[1646862984351,3.35,2708.8,2708.1,0.029168]
[1646862984352,4.884,2708.8,2708.1,0.029168]
[1646862984649,4.884,2708.8,2707.5,2.5]
[1646862984650,5.726,2708.8,2708.5,0.00323907]
[1646862984854,0.021001,2708.6,2708.5,0.00323907]
[1646862985048,0.555001,2708.6,2708.5,0.00323907]
[1646862985246,4.055001,2708.6,2708.5,3.907e-05]
[1646862985449,12.876931,2708.6,2707.4,0.029168]
[1646862985648,6.674,2708.4,2707.5,1.53480233]
[1646862985847,4.034,2708.3,2707.3,0.029168]
[1646862986051,0.92401,2708.2,2707.4,1.53480482]
[1646862986249,0.92401,2707.9,2707.4,1.53480482]
[1646862986450,4.034,2707.8,2707.4,1.53480482]
[1646862986848,5.334,2707.8,2707.4,1.53480482]
[1646862987049,4.8,2707.8,2707.4,1.53480482]
[1646862987354,4.8,2707.8,2706.8,0.029168]
[1646862987355,0.92408,2707.6,2706.8,0.029168]
[1646862987550,4.034,2707.5,2706.7,0.029168]
[1646862987788,1.534,2707.5,2707.0,0.029168]
[1646862987987,2.58533937,2707.5,2707.1,1.56406546]
[1646862988191,1.58533937,2707.5,2707.2,1.56406546]
[1646862988390,3.50933937,2707.5,2707.3,1.53489746]
[1646862988690,2.50933937,2707.5,2707.3,1.53489746]
[1646862988991,0.3,2707.4,2707.3,1.53489746]
[1646862989192,3.50933937,2707.5,2707.4,0.59999999]
[1646862989391,3.50933937,2707.5,2707.4,2.13489745]
[1646862993241,0.534,2707.5,2707.4,2.16406545]
[1646862993446,0.92392,2707.8,2707.4,2.25355351]
[1646862993643,4.74263669,2708.2,2707.6,0.029168]
[1646862993844,4.74263669,2708.2,2707.7,1.56406546]
[1646862994043,4.74263669,2708.2,2707.7,0.029168]
[1646862994345,1.20269148,2708.0,2707.9,0.029168]
[1646862994546,3.05040148,2708.0,2707.9,0.029168]
[1646862994844,2.71340722,2708.0,2707.9,0.029168]
[1646862995042,1.71340722,2708.0,2707.9,0.029168]
[1646862995293,2.41340722,2708.0,2707.9,0.029168]
[1646862995588,1.41340722,2708.0,2707.8,0.00353508]
[1646862995792,3.56111722,2708.0,2707.8,0.00353508]
[1646862996189,3.56111722,2708.0,2707.7,0.029168]
[1646862996393,4.56111722,2708.0,2707.7,0.029168]
[1646862996592,4.56111722,2708.0,2707.8,0.00353515]
[1646862997396,4.56111722,2708.0,2707.7,0.029168]
[1646862997798,4.56111722,2708.0,2707.8,0.00353515]
[1646862998597,0.9238856,2708.6,2707.9,0.029168]
[1646862998598,1.84757,2708.6,2707.9,0.029168]
[1646862998802,2.907,2708.8,2708.4,0.029168]
[1646862999048,0.05134054,2709.2,2708.5,0.029168]
[1646862999249,0.05134054,2709.2,2708.7,0.029168]
[1646862999449,0.05134054,2709.2,2708.5,0.029168]
[1646862999650,1.96977037,2708.9,2708.5,0.029168]
[1646862999853,1.96977037,2708.9,2708.3,0.029168]
[1646862999854,2.50377037,2708.9,2708.3,0.029168]
[1646863000048,2.50377037,2708.9,2707.6,0.06943921]
[1646863000049,3.50377037,2708.9,2708.4,0.00328866]
[1646863000250,3.55698918,2708.9,2708.4,0.00328866]
[1646863000455,3.85698918,2708.9,2708.4,0.00328866]
[1646863000855,0.92368,2708.7,2708.5,0.029168]
[1646863001050,1.84727,2708.7,2708.3,0.029168]
[1646863001249,1.84727,2708.7,2708.5,0.029168]
[1646863001451,1.84727,2708.7,2708.4,0.00328866]
[1646863002049,2.14727,2708.7,2708.4,0.00328866]
[1646863002352,2.14727,2708.7,2708.4,0.029168]
[1646863002550,2.14727,2708.7,2708.4,0.03249683]
[1646863003390,0.3,2708.7,2708.6,0.029168]
[1646863003589,1.0,2708.9,2708.6,0.029168]
[1646863003790,1.84701,2709.0,2708.6,0.029168]
[1646863003993,1.84701,2709.0,2708.8,0.029168]
[1646863004193,1.84701,2709.0,2708.6,0.029168]
[1646863004596,2.77054,2709.0,2708.6,0.029168]
[1646863004993,3.07054,2709.0,2708.6,0.029168]
[1646863005193,4.07054,2709.0,2708.4,1.23678427]
[1646863005394,4.07054,2709.0,2708.6,0.029168]
[1646863005596,3.77054,2709.0,2708.6,0.029168]
[1646863005795,4.07054,2709.0,2708.6,0.029168]
[1646863007138,3.77054,2709.0,2708.6,0.029168]
[1646863007340,4.07054,2709.0,2708.6,0.029168]
[1646863007539,3.77054,2709.0,2708.6,0.029168]
[1646863007740,4.07054,2709.0,2708.6,0.029168]
[1646863008143,3.77054,2709.0,2708.6,0.029168]
[1646863008340,4.07054,2709.0,2708.6,0.029168]
[1646863009149,3.77054,2709.0,2708.6,0.029168]
[1646863009346,4.07054,2709.0,2708.6,0.029168]
[1646863009547,4.07054,2709.0,2708.8,0.029168]
[1646863009548,1.84701,2709.0,2708.8,0.029168]
[1646863009750,4.64420054,2709.9,2708.8,0.029168]
[1646863009751,2.76989,2709.7,2708.8,0.029168]
[1646863009946,2.76989,2709.7,2709.6,0.029168]
[1646863009947,0.92327,2709.7,2709.6,0.029168]
[1646863010204,0.00360809,2710.0,2709.6,0.029168]
[1646863010391,0.00360809,2710.0,2709.8,0.029168]
[1646863010794,0.05208369,2710.3,2709.8,0.029168]
[1646863010990,0.92142435,2710.3,2709.8,0.029168]
[1646863011193,0.92142435,2710.3,2709.6,0.029168]
[1646863011391,0.92315,2710.1,2709.8,0.029168]
[1646863011591,1.84623,2710.1,2709.8,0.029168]
[1646863011991,1.84623,2710.1,2709.6,0.029168]
[1646863012193,1.84623,2710.1,2709.7,0.029168]
[1646863012391,1.89968122,2710.0,2709.3,0.029168]
[1646863012591,2.19968122,2710.0,2709.3,0.029168]
[1646863013394,1.94426165,2709.8,2709.4,0.029168]
[1646863013692,0.92325,2709.7,2709.4,0.029168]
[1646863014844,0.21017017,2709.7,2709.6,0.058336]
[1646863015047,0.21017017,2709.7,2709.6,0.029168]
[1646863015344,0.92332,2709.6,2709.4,0.029168]
[1646863015749,0.92332,2709.6,2708.8,0.1844]
[1646863015750,1.21072089,2709.3,2708.8,0.1844]
[1646863015952,2.7706,2709.4,2708.8,0.029168]
[1646863016147,4.3046,2709.4,2708.9,0.029168]
[1646863016346,4.3046,2709.4,2708.6,0.25376738]
[1646863016545,4.3046,2709.4,2708.9,0.029168]
[1646863016546,5.2281,2709.4,2708.9,0.029168]
[1646863016747,5.5281,2709.4,2708.9,0.029168]
[1646863016947,0.92353,2709.3,2708.9,0.029168]
[1646863017148,1.22353,2709.3,2709.0,0.029168]
[1646863017714,2.7575,2709.4,2709.0,0.029168]
[1646863017903,1.7575,2709.4,2709.0,0.029168]
[1646863018101,2.4575,2709.4,2709.0,0.029168]
[1646863018302,0.834,2709.4,2709.0,0.029168]
[1646863018504,0.3,2709.4,2709.0,0.029168]
[1646863018702,0.944341,2709.5,2708.9,0.029168]
[1646863019304,0.944341,2709.5,2708.7,0.1844]
[1646863019505,0.944341,2709.5,2708.9,0.029168]
[1646863019506,0.92337,2709.4,2708.9,0.029168]
[1646863019706,1.22337,2709.4,2708.9,0.029168]
[1646863020108,0.92337,2709.4,2708.9,0.029168]
[1646863020305,1.22337,2709.4,2708.9,0.029168]
[1646863020708,2.77054,2709.2,2708.8,0.029168]
[1646863020906,2.77054,2709.2,2708.7,0.029168]
[1646863020907,0.92353,2709.1,2708.7,0.029168]
[1646863021110,1.84705,2709.1,2708.8,0.029168]
[1646863021307,2.14705,2709.1,2708.8,0.029168]
[1646863021556,2.14705,2709.1,2708.7,0.029168]
[1646863021740,2.14705,2709.1,2708.7,0.11490666]
[1646863022139,2.14705,2709.1,2708.8,0.029168]
[1646863022539,2.14705,2709.1,2708.9,0.029168]
[1646863023541,2.14705,2709.1,2709.0,0.029168]
[1646863024543,2.14705,2709.1,2708.9,0.029168]
[1646863024743,2.14705,2709.1,2708.9,0.058336]